fUST/lending_fUST_20260217
["ID","MTS","AMOUNT","RATE_DAILY","PERIOD"]
[405786712,1771308646086,-500.0,0.00015428,2]
[405786714,1771308646095,-500.0,0.00015428,2]
[405786716,1771308646105,-500.0,0.00015428,2]
[405786718,1771308646115,-500.0,0.00015428,2]
[405786720,1771308646126,-500.0,0.00015428,2]
[405786722,1771308646136,-500.0,0.00015428,2]
[405786724,1771308646145,-500.0,0.00015428,2]
[405786725,1771308646155,-500.0,0.00015428,2]
[405786727,1771308646164,-500.0,0.00015428,2]
[405786729,1771308646174,-640.11260605,0.00015428,2]
[405786731,1771308646183,-500.0,0.00015428,2]
[405786733,1771308646192,-500.0,0.00015428,2]
[405786735,1771308646203,-500.0,0.00015428,2]
[405786737,1771308646214,-500.0,0.00015428,2]
[405786739,1771308646223,-500.0,0.00015428,2]
[405786742,1771308646232,-500.0,0.00015428,2]
[405786743,1771308646242,-500.0,0.00015428,2]
[405786746,1771308646251,-500.0,0.00015428,2]
[405786747,1771308646261,-500.0,0.00015428,2]
[405786750,1771308646270,-500.0,0.00015428,2]
[405786752,1771308646280,-500.0,0.00015428,2]
[405786754,1771308646289,-500.0,0.00015428,2]
[405786756,1771308646298,-500.0,0.00015428,2]
[405786758,1771308646308,-500.0,0.00015428,2]
[405786760,1771308646317,-500.0,0.00015428,2]
[405786762,1771308646327,-500.0,0.00015428,2]
[405786764,1771308646337,-500.0,0.00015428,2]
[405786766,1771308646347,-500.0,0.00015428,2]
[405786768,1771308646356,-500.0,0.00015428,2]
[405786770,1771308646366,-500.0,0.00015428,2]
[405786772,1771308646375,-500.0,0.00015428,2]
[405786774,1771308646384,-500.0,0.00015428,2]
[405786776,1771308646394,-500.0,0.00015428,2]
[405786778,1771308646403,-500.0,0.00015428,2]
[405786779,1771308646413,-500.0,0.00015428,2]
[405786782,1771308646423,-500.0,0.00015428,2]
[405786783,1771308646432,-500.0,0.00015428,2]
[405786786,1771308646442,-500.0,0.00015428,2]
[405786788,1771308646451,-500.0,0.00015428,2]
[405786790,1771308646461,-500.0,0.00015428,2]
[405786792,1771308646470,-500.0,0.00015428,2]
[405786793,1771308646480,-500.0,0.00015428,2]
[405786796,1771308646490,-500.0,0.00015428,2]
[405786797,1771308646499,-500.0,0.00015428,2]
[405786799,1771308646509,-500.0,0.00015428,2]
[405786801,1771308646518,-500.0,0.00015428,2]
[405786804,1771308646528,-500.0,0.00015428,2]
[405786806,1771308646538,-500.0,0.00015428,2]
[405786808,1771308646548,-500.0,0.00015428,2]
[405786810,1771308646559,-500.0,0.00015428,2]
[405786812,1771308646569,-500.0,0.00015428,2]
[405786814,1771308646578,-500.0,0.00015428,2]
[405786816,1771308646588,-500.0,0.00015428,2]
[405786818,1771308646599,-500.0,0.00015428,2]
[405786820,1771308646609,-500.0,0.00015428,2]
[405786822,1771308646619,-500.0,0.00015428,2]
[405786824,1771308646629,-500.0,0.00015428,2]
[405786826,1771308646639,-500.0,0.00015428,2]
[405786828,1771308646649,-500.0,0.00015428,2]
[405786830,1771308646658,-500.0,0.00015428,2]
[405786832,1771308646668,-485.20081814,0.00015428,2]
[405786834,1771308646677,-500.0,0.00015428,2]
[405786836,1771308646687,-500.0,0.00015428,2]
[405786838,1771308646697,-500.0,0.00015428,2]
[405786840,1771308646706,-500.0,0.00015428,2]
[405786842,1771308646716,-500.0,0.00015428,2]
[405786844,1771308646725,-500.0,0.00015428,2]
[405786846,1771308646734,-500.0,0.00015428,2]
[405786848,1771308646744,-500.0,0.00015428,2]
[405786850,1771308646753,-500.0,0.00015428,2]
[405786852,1771308646762,-500.0,0.00015428,2]
[405786854,1771308646772,-500.0,0.00015428,2]
[405786856,1771308646781,-500.0,0.00015428,2]
[405786858,1771308646790,-500.0,0.00015428,2]
[405786860,1771308646800,-500.0,0.00015428,2]
[405786862,1771308646810,-500.0,0.00015428,2]
[405786864,1771308646819,-500.0,0.00015428,2]
[405786866,1771308646829,-500.0,0.00015428,2]
[405786868,1771308646839,-412.16217344,0.00015428,2]
[405787066,1771308721995,151.0,0.00015428,4]
[405787079,1771308891135,312.97447876,0.00014991,2]
[405787090,1771308935169,499.7875191,0.00014876,2]
[405787091,1771308938482,205.84,0.00015411,4]
[405787093,1771308984957,48348.76763473,0.00014,7]
[405787094,1771308985102,1110322.20046637,0.00014,7]
[405787095,1771308985132,50000.0,0.00014,7]
[405787096,1771308985158,997020.53861343,0.00014,7]
[405787142,1771309352377,500.0,0.00013699,2]
[405787199,1771309538151,-286.2693756,0.0001499,2]
[405787200,1771309538174,-327.16500069,0.0001499,2]
[405787201,1771309538198,-510.68411826,0.0001499,2]
[405787202,1771309538224,-1.647375,0.00015093,2]
[405787207,1771309627067,-397.58402584,0.00015017,2]
[405787208,1771309632240,-2398.64930311,0.00015017,2]
[405787219,1771309651113,-954.3680669,0.00015017,2]
[405787220,1771309651135,-20.15381785,0.00015169,2]
[405787251,1771309757126,-241.44595777,0.00015169,2]
[405787253,1771309773092,-381.0793188,0.00015245,2]
[405787264,1771309831723,-261.56527926,0.00015362,2]
[405787265,1771309831734,-181.79,0.000154,2]
[405787266,1771309831744,-249.70998479,0.00015422,2]
[405787267,1771309831755,-250.29001521,0.00015422,2]
[405787268,1771309831764,-184.7279834,0.00015422,2]
[405787269,1771309831774,-275.31456131,0.00015422,2]
[405787270,1771309831784,-224.68543869,0.00015422,2]
[405787271,1771309831792,-155.89103539,0.00015422,2]
[405787309,1771309837854,-344.10896461,0.00015422,2]
[405787311,1771309837863,-500.0,0.00015422,2]
[405787313,1771309837873,-500.0,0.00015422,2]
[405787315,1771309837882,-500.0,0.00015422,2]
[405787317,1771309837891,-500.0,0.00015422,2]
[405787319,1771309837901,-500.0,0.00015422,2]
[405787321,1771309837911,-500.0,0.00015422,2]
[405787323,1771309837920,-500.0,0.00015422,2]
[405787325,1771309837930,-500.0,0.00015422,2]
[405787327,1771309837939,-500.0,0.00015422,2]
[405787329,1771309837948,-500.0,0.00015422,2]
[405787331,1771309837957,-500.0,0.00015422,2]
[405787333,1771309837966,-500.0,0.00015422,2]
[405787335,1771309837975,-241.74700472,0.00015422,2]
[405787337,1771309837984,-500.0,0.00015422,2]
[405787339,1771309837993,-500.0,0.00015422,2]
[405787341,1771309838003,-500.0,0.00015422,2]
[405787343,1771309838012,-500.0,0.00015422,2]
[405787345,1771309838021,-500.0,0.00015422,2]
[405787347,1771309838030,-500.0,0.00015422,2]
[405787348,1771309838039,-500.0,0.00015422,2]
[405787350,1771309838048,-500.0,0.00015422,2]
[405787352,1771309838057,-372.54758877,0.00015422,2]
[405787354,1771309838066,-500.0,0.00015425,2]
[405787356,1771309838076,-500.0,0.00015425,2]
[405787358,1771309838085,-430.0,0.00015425,2]
[405787360,1771309838094,-464.787322,0.00015426,2]
[405787362,1771309838103,-151.0,0.00015426,2]
[405787363,1771309838112,-169.590595,0.00015426,2]
[405787364,1771309838121,-500.0,0.00015426,2]
[405787365,1771309838130,-500.0,0.00015426,2]
[405787366,1771309838139,-500.0,0.00015426,2]
[405787367,1771309838149,-153.884599,0.00015427,2]
[405787368,1771309838159,-2100.0,0.00015433,2]
[405787369,1771309838168,-6278.0325993,0.0001548,2]
[405787370,1771309838178,-727.7118997,0.00015624,2]
[405787371,1771309838187,-175.52760642,0.00015767,2]
[405787372,1771309838196,-315.63374187,0.00015767,2]
[405787373,1771309838206,-421.4924981,0.00015767,2]
[405787374,1771309838216,-758.68649658,0.00015767,2]
[405787375,1771309838226,-1348.77599392,0.00015767,2]
[405787376,1771309838236,-500.0,0.00015788,2]
[405787377,1771309838245,-500.0,0.00015788,2]
[405787378,1771309838256,-500.0,0.00015788,2]
[405787379,1771309838265,-500.0,0.00015788,2]
[405787380,1771309838275,-300.0,0.00015789,2]
[405787381,1771309838287,-300.0,0.00015789,2]
[405787382,1771309838298,-300.0,0.00015789,2]
[405787383,1771309838308,-300.0,0.00015789,2]
[405787384,1771309838317,-300.0,0.00015789,2]
[405787385,1771309838328,-300.0,0.00015789,2]
[405787386,1771309838337,-300.0,0.00015789,2]
[405787387,1771309838347,-300.0,0.00015789,2]
[405787388,1771309838357,-300.0,0.00015789,2]
[405787389,1771309838367,-300.0,0.00015789,2]
[405787390,1771309838375,-300.0,0.00015789,2]
[405787391,1771309838384,-300.0,0.00015789,2]
[405787392,1771309838393,-300.0,0.00015789,2]
[405787393,1771309838402,-300.0,0.00015789,2]
[405787394,1771309838411,-300.0,0.00015789,2]
[405787396,1771309838421,-500.0,0.00015789,2]
[405787398,1771309838431,-250.0,0.00015915,2]
[405787400,1771309838441,-250.0,0.00015915,2]
[405787402,1771309838450,-500.0,0.00015915,2]
[405787404,1771309838460,-250.0,0.00015915,2]
[405787406,1771309838471,-250.0,0.00015915,2]
[405787408,1771309838482,-500.0,0.00015915,2]
[405787410,1771309838492,-250.0,0.00015915,2]
[405787412,1771309838501,-250.0,0.00015915,2]
[405787413,1771309838513,-500.0,0.00015915,2]
[405787415,1771309838524,-250.0,0.00015915,2]
[405787417,1771309838534,-250.0,0.00015915,2]
[405787419,1771309838544,-250.0,0.00015915,2]
[405787421,1771309838554,-500.0,0.00015915,2]
[405787423,1771309838564,-250.0,0.00015915,2]
[405787425,1771309838574,-250.0,0.00015915,2]
[405787427,1771309838584,-250.0,0.00015915,2]
[405787429,1771309838594,-174.61919141,0.00015915,2]
[405787431,1771309838604,-500.0,0.00015915,2]
[405787433,1771309838613,-250.0,0.00015915,2]
[405787435,1771309838623,-250.0,0.00015915,2]
[405787437,1771309838633,-250.0,0.00015915,2]
[405787439,1771309838643,-181.08010149,0.00015915,2]
[405787441,1771309838652,-250.0,0.00015915,2]
[405787443,1771309838662,-250.0,0.00015915,2]
[405787445,1771309838672,-250.0,0.00015915,2]
[405787447,1771309838681,-250.0,0.00015915,2]
[405787449,1771309838691,-187.78006525,0.00015915,2]
[405787451,1771309838700,-500.0,0.00015915,2]
[405787453,1771309838710,-250.0,0.00015915,2]
[405787455,1771309838719,-250.0,0.00015915,2]
[405787456,1771309838728,-250.0,0.00015915,2]
[405787458,1771309838737,-250.0,0.00015915,2]
[405787460,1771309838747,-194.72792766,0.00015915,2]
[405787462,1771309838758,-500.0,0.00015915,2]
[405787464,1771309838768,-250.0,0.00015915,2]
[405787466,1771309838777,-250.0,0.00015915,2]
[405787468,1771309838787,-250.0,0.00015915,2]
[405787470,1771309838796,-201.93286099,0.00015915,2]
[405787472,1771309838806,-500.0,0.00015915,2]
[405787474,1771309838816,-250.0,0.00015915,2]
[405787476,1771309838825,-500.0,0.00015915,2]
[405787478,1771309838835,-352.7101838,0.00015915,2]
[405787480,1771309838844,-250.0,0.00015915,2]
[405787482,1771309838854,-250.0,0.00015915,2]
[405787484,1771309838863,-500.0,0.00015915,2]
[405787486,1771309838872,-209.40437684,0.00015915,2]
[405787488,1771309838882,-250.0,0.00015915,2]
[405787490,1771309838891,-500.0,0.00015915,2]
[405787492,1771309838900,-250.0,0.00015915,2]
[405787494,1771309838910,-250.0,0.00015915,2]
[405787496,1771309838919,-500.0,0.00015915,2]
[405787498,1771309838929,-250.0,0.00015915,2]
[405787500,1771309838939,-500.0,0.00015915,2]
[405787502,1771309838948,-250.0,0.00015915,2]
[405787504,1771309838959,-217.15233878,0.00015915,2]
[405787506,1771309838971,-500.0,0.00015915,2]
[405787508,1771309838980,-250.0,0.00015915,2]
[405787510,1771309838990,-250.0,0.00015915,2]
[405787511,1771309838999,-500.0,0.00015915,2]
[405787513,1771309839009,-250.0,0.00015915,2]
[405787516,1771309839019,-225.18697532,0.00015915,2]
[405787517,1771309839028,-500.0,0.00015915,2]
[405787519,1771309839039,-250.0,0.00015915,2]
[405787521,1771309839048,-250.0,0.00015915,2]
[405787523,1771309839058,-500.0,0.00015915,2]
[405787526,1771309839071,-250.0,0.00015915,2]
[405787527,1771309839080,-233.51889341,0.00015915,2]
[405787529,1771309839089,-500.0,0.00015915,2]
[405787531,1771309839099,-161.16129971,0.00015915,2]
[405787533,1771309839108,-250.0,0.00015915,2]
[405787536,1771309839118,-500.0,0.00015915,2]
[405787537,1771309839127,-266.81750844,0.00015915,2]
[405787539,1771309839137,-500.0,0.00015915,2]
[405787541,1771309839147,-242.15909246,0.00015915,2]
[405787543,1771309839157,-250.0,0.00015915,2]
[405787545,1771309839166,-250.0,0.00015915,2]
[405787547,1771309839176,-500.0,0.00015915,2]
[405787549,1771309839185,-500.0,0.00015915,2]
[405787552,1771309839195,-251.11897888,0.00015915,2]
[405787553,1771309839204,-250.0,0.00015915,2]
[405787555,1771309839214,-250.0,0.00015915,2]
[405787558,1771309839224,-500.0,0.00015915,2]
[405787559,1771309839233,-260.4103811,0.00015915,2]
[405787562,1771309839243,-500.0,0.00015915,2]
[405787564,1771309839255,-250.0,0.00015915,2]
[405787566,1771309839265,-500.0,0.00015915,2]
[405787567,1771309839275,-250.0,0.00015915,2]
[405787569,1771309839286,-270.0455652,0.00015915,2]
[405787572,1771309839299,-250.0,0.00015915,2]
[405787574,1771309839309,-500.0,0.00015915,2]
[405787575,1771309839318,-250.0,0.00015915,2]
[405787577,1771309839327,-280.03725112,0.00015915,2]
[405787579,1771309839336,-250.0,0.00015915,2]
[405787581,1771309839345,-500.0,0.00015915,2]
[405787583,1771309839354,-250.0,0.00015915,2]
[405787585,1771309839368,-2000.0,0.00015915,2]
[405787587,1771309839377,-290.39862941,0.00015915,2]
[405787589,1771309839387,-250.0,0.00015915,2]
[405787591,1771309839396,-500.0,0.00015915,2]
[405787593,1771309839406,-250.0,0.00015915,2]
[405787595,1771309839415,-2074.0,0.00015915,2]
[405787597,1771309839424,-301.1433787,0.00015915,2]
[405787599,1771309839433,-250.0,0.00015915,2]
[405787601,1771309839443,-500.0,0.00015915,2]
[405787604,1771309839452,-250.0,0.00015915,2]
[405787607,1771309839461,-2150.738,0.00015915,2]
[405787610,1771309839469,-500.0,0.00015915,2]
[405787613,1771309839478,-250.0,0.00015915,2]
[405787616,1771309839487,-2230.315306,0.00015915,2]
[405787617,1771309839496,-247.37230552,0.00015915,2]
[405787619,1771309839505,-250.0,0.00015915,2]
[405787621,1771309839514,-2312.83697232,0.00015915,2]
[405787623,1771309839524,-151.0,0.00015915,2]
[405787625,1771309839532,-250.0,0.00015915,2]
[405787627,1771309839541,-151.0,0.00015915,2]
[405787629,1771309839551,-166.0969756,0.00015915,2]
[405787631,1771309839560,-250.0,0.00015915,2]
[405787633,1771309839569,-250.0,0.00015915,2]
[405787635,1771309839578,-250.0,0.00015915,2]
[405787637,1771309839587,-250.0,0.00015915,2]
[405787640,1771309839596,-207.60866462,0.00015915,2]
[405787643,1771309839605,-250.0,0.00015915,2]
[405787646,1771309839613,-250.0,0.00015915,2]
[405787649,1771309839622,-250.0,0.00015915,2]
[405787652,1771309839631,-151.0,0.00015915,2]
[405787653,1771309839640,-250.0,0.00015915,2]
[405787656,1771309839652,-151.0,0.00015915,2]
[405787658,1771309839661,-250.0,0.00015915,2]
[405787659,1771309839670,-191.41551727,0.00015915,2]
[405787661,1771309839679,-250.0,0.00015915,2]
[405787663,1771309839688,-250.0,0.00015915,2]
[405787665,1771309839697,-250.0,0.00015915,2]
[405787667,1771309839706,-250.0,0.00015915,2]
[405787669,1771309839715,-173.29187119,0.00015915,2]
[405787671,1771309839724,-250.0,0.00015915,2]
[405787673,1771309839733,-250.0,0.00015915,2]
[405787675,1771309839742,-250.0,0.00015915,2]
[405787677,1771309839751,-250.0,0.00015915,2]
[405787679,1771309839761,-250.0,0.00015915,2]
[405787681,1771309839770,-250.0,0.00015915,2]
[405787683,1771309839779,-250.0,0.00015915,2]
[405787685,1771309839789,-250.0,0.00015915,2]
[405787687,1771309839798,-250.0,0.00015915,2]
[405787689,1771309839807,-250.0,0.00015915,2]
[405787691,1771309839816,-250.0,0.00015915,2]
[405787692,1771309839824,-250.0,0.00015915,2]
[405787694,1771309839834,-3200.940717,0.00016009,2]
[405787696,1771309839843,-600.0,0.00016104,2]
[405787698,1771309839854,-151.83426459,0.00016168,2]
[405787700,1771309839863,-175.06305848,0.00016168,2]
[405787702,1771309839872,-150.0,0.00016168,2]
[405787704,1771309839881,-150.0,0.00016223,2]
[405787706,1771309839890,-4225.43399297,0.00016275,2]
[405787709,1771309839900,-150.0,0.00016278,2]
[405787710,1771309839909,-150.0,0.00016332,2]
[405787712,1771309839918,-1760.19626577,0.00016344,2]
[405787714,1771309839927,-168.0,0.00016361,2]
[405787716,1771309839937,-545.92888316,0.00016375,2]
[405787718,1771309839946,-500.0,0.00016375,2]
[405787720,1771309839955,-500.0,0.00016375,2]
[405787722,1771309839964,-500.0,0.00016379,2]
[405787724,1771309839974,-158.02,0.0001638,2]
[405787726,1771309839983,-150.0,0.00016387,2]
[405787728,1771309839993,-350.01,0.00016429,2]
[405787730,1771309840002,-500.0,0.00016438,2]
[405787732,1771309840012,-500.0,0.00016438,2]
[405787734,1771309840022,-500.0,0.00016438,2]
[405787736,1771309840031,-500.0,0.00016438,2]
[405787749,1771309840140,-152.56530117,0.00016438,2]
[405787751,1771309840150,-500.0,0.00016438,2]
[405787753,1771309840160,-500.0,0.00016438,2]
[405787755,1771309840169,-500.0,0.00016438,2]
[405787756,1771309840178,-500.0,0.00016438,2]
[405787758,1771309840187,-500.0,0.00016438,2]
[405787760,1771309840196,-380.05239976,0.00016438,2]
[405787762,1771309840205,-500.0,0.00016438,2]
[405787764,1771309840215,-271.71842342,0.00016438,2]
[405787767,1771309840224,-500.0,0.00016438,2]
[405787769,1771309840234,-360.72268426,0.00016438,2]
[405787771,1771309840244,-170.28036192,0.00016438,2]
[405787773,1771309840254,-500.0,0.00016438,2]
[405787775,1771309840263,-500.0,0.00016438,2]
[405787777,1771309840272,-304.90664841,0.00016438,2]
[405787779,1771309840281,-153.58819237,0.00016438,2]
[405787781,1771309840294,-500.0,0.00016438,2]
[405787783,1771309840304,-500.0,0.00016438,2]
[405787785,1771309840313,-500.0,0.00016438,2]
[405787787,1771309840322,-500.0,0.00016438,2]
[405787788,1771309840334,-170.736039,0.00016438,2]
[405787790,1771309840343,-154.214515,0.00016438,2]
[405787792,1771309840352,-151.0,0.00016438,2]
[405787794,1771309840362,-151.0,0.00016438,2]
[405787796,1771309840374,-151.0,0.00016438,2]
[405787798,1771309840384,-151.0,0.00016438,2]
[405787800,1771309840393,-165.09371547,0.00016438,2]
[405787802,1771309840403,-168.0,0.0001644,2]
[405787804,1771309840412,-228.28629815,0.00016442,2]
[405787806,1771309840422,-402.0,0.00016446,2]
[405787808,1771309840431,-461.82245915,0.00016449,2]
[405787810,1771309840440,-1274.63872567,0.00016463,2]
[405787812,1771309840449,-500.0,0.00016471,2]
[405787814,1771309840459,-620.08307918,0.00016471,2]
[405787816,1771309840468,-600.49906115,0.00016472,2]
[405787818,1771309840478,-500.0,0.00016472,2]
[405787820,1771309840487,-500.0,0.00016472,2]
[405787822,1771309840496,-168.0,0.00016483,2]
[405787824,1771309840506,-500.0,0.00016527,2]
[405787826,1771309840515,-500.0,0.00016528,2]
[405787828,1771309840524,-500.0,0.00016528,2]
[405787829,1771309840534,-500.0,0.00016528,2]
[405787831,1771309840543,-168.0,0.00016552,2]
[405787833,1771309840553,-239.79614157,0.00016597,2]
[405787835,1771309840563,-431.63305483,0.00016597,2]
[405787837,1771309840573,-767.34765303,0.00016597,2]
[405787839,1771309840584,-1197.78172715,0.00016597,2]
[405787841,1771309840593,-2105.355028,0.00016597,2]
[405787843,1771309840603,-396.11606763,0.00016597,2]
[405787845,1771309840612,-452.70407729,0.00016597,2]
[405787847,1771309840622,-706.64277064,0.00016597,2]
[405787849,1771309840631,-299.4237164,0.00016597,2]
[405787851,1771309840640,-222.1811075,0.00016597,2]
[405787853,1771309840649,-538.96268952,0.00016597,2]
[405787855,1771309840659,-958.15589247,0.00016597,2]
[405787857,1771309840668,-399.9259935,0.00016597,2]
[405787859,1771309840678,-710.979544,0.00016597,2]
[405787861,1771309840687,-1497.11858199,0.00016597,2]
[405787863,1771309840695,-2153.6949073,0.00016597,2]
[405787864,1771309840704,-3200.940717,0.00016682,2]
[405787866,1771309840714,-500.0,0.00016712,2]
[405787868,1771309840722,-500.0,0.00016712,2]
[405787870,1771309840731,-500.0,0.00016712,2]
[405787872,1771309840740,-500.0,0.00016712,2]
[405787874,1771309840749,-500.0,0.00016712,2]
[405787876,1771309840761,-500.0,0.00016712,2]
[405787878,1771309840770,-500.0,0.00016712,2]
[405787880,1771309840779,-612.14915862,0.00016712,2]
[405787882,1771309840788,-500.0,0.00016712,2]
[405787884,1771309840797,-500.0,0.00016712,2]
[405787886,1771309840806,-500.0,0.00016712,2]
[405787887,1771309840815,-500.0,0.00016712,2]
[405787889,1771309840824,-500.0,0.00016712,2]
[405787891,1771309840833,-250.0,0.0001674,2]
[405787893,1771309840842,-490.0,0.00016745,2]
[405787895,1771309840851,-1109.79463197,0.00016756,2]
[405787897,1771309840860,-500.0,0.0001679,2]
[405787899,1771309840869,-168.0,0.00016817,2]
[405787901,1771309840878,-168.0,0.00016911,2]
[405787903,1771309840887,-168.0,0.00016976,2]
[405787904,1771309840896,-500.0,0.00016986,2]
[405787906,1771309840905,-500.0,0.00016986,2]
[405787908,1771309840914,-365.83846394,0.00016986,2]
[405787910,1771309840923,-455.69380235,0.00016986,2]
[405787912,1771309840933,-500.0,0.00016986,2]
[405787914,1771309840944,-500.0,0.00016986,2]
[405787916,1771309840952,-500.0,0.00016986,2]
[405787918,1771309840961,-521.55486979,0.00016986,2]
[405787920,1771309840971,-500.0,0.00016986,2]
[405787922,1771309840980,-500.0,0.00016986,2]
[405787924,1771309840989,-500.0,0.00016986,2]
[405787926,1771309840998,-502.38335271,0.00016986,2]
[405787928,1771309841007,-174.718,0.00016988,2]
[405787930,1771309841016,-2660.05012754,0.0001699,2]
[405787931,1771309841026,-151.0,0.00017,2]
[405787933,1771309841034,-17925.81263208,0.00017,2]
[405787935,1771309841043,-168.0,0.00017006,2]
[405787937,1771309841053,-500.0,0.00017019,2]
[405787939,1771309841062,-213.72704575,0.00017052,2]
[405787941,1771309841071,-151.0,0.000171,2]
[405787943,1771309841080,-168.0,0.00017115,2]
[405787945,1771309841089,-176.943,0.00017175,2]
[405787946,1771309841098,-163.0,0.0001718,2]
[405787948,1771309841108,-892.0,0.0001719,3]
[405787950,1771309841117,-151.0,0.000172,2]
[405787952,1771309841126,-56088.29158596,0.000172,2]
[405787954,1771309841135,-335.0,0.0001721,2]
[405787956,1771309841144,-500.0,0.0001726,2]
[405787958,1771309841153,-500.0,0.0001726,2]
[405787960,1771309841161,-500.0,0.0001726,2]
[405787962,1771309841170,-250.74916928,0.0001726,2]
[405787964,1771309841179,-500.0,0.0001726,2]
[405787966,1771309841188,-500.0,0.0001726,2]
[405787967,1771309841198,-616.97697027,0.0001726,2]
[405787969,1771309841207,-500.0,0.0001726,2]
[405787971,1771309841216,-160.0,0.00017265,3]
[405787973,1771309841225,-151.0,0.000173,2]
[405787975,1771309841235,-85152.59477903,0.000173,2]
[405787977,1771309841244,-168.0,0.00017319,2]
[405787979,1771309841253,-500.0,0.00017324,2]
[405787981,1771309841263,-500.0,0.00017324,2]
[405787983,1771309841272,-500.0,0.00017324,2]
[405787985,1771309841282,-500.0,0.00017324,2]
[405787987,1771309841292,-500.0,0.00017324,2]
[405787988,1771309841303,-500.0,0.00017324,2]
[405787990,1771309841312,-426.31219432,0.00017324,2]
[405787992,1771309841322,-207582.41311704,0.00017325,2]
[405787994,1771309841332,-341488.39039305,0.00017325,2]
[405787996,1771309841341,-487.0,0.00017325,2]
[405787998,1771309841350,-487.0,0.00017325,2]
[405788000,1771309841360,-487.0,0.00017325,2]
[405788002,1771309841370,-487.0,0.00017325,2]
[405788004,1771309841382,-487.0,0.00017325,2]
[405788006,1771309841391,-487.0,0.00017325,2]
[405788008,1771309841399,-487.0,0.00017325,2]
[405788010,1771309841409,-487.0,0.00017325,2]
[405788012,1771309841418,-487.0,0.00017325,2]
[405788013,1771309841427,-487.0,0.00017325,2]
[405788015,1771309841436,-487.0,0.00017325,2]
[405788017,1771309841445,-487.0,0.00017325,2]
[405788019,1771309841454,-487.0,0.00017325,2]
[405788021,1771309841463,-487.0,0.00017325,2]
[405788023,1771309841472,-487.0,0.00017325,2]
[405788025,1771309841482,-3200.940717,0.00017356,2]
[405788027,1771309841491,-308.64702952,0.00017362,2]
[405788029,1771309841501,-400.0,0.00017396,2]
[405788031,1771309841512,-151.0,0.000174,2]
[405788033,1771309841521,-151.0,0.000174,2]
[405788035,1771309841530,-503.22075061,0.000174,2]
[405788037,1771309841539,-12645.04509731,0.00017415,2]
[405788038,1771309841548,-168.0,0.00017423,2]
[405788040,1771309841557,-322.4110024,0.000175,2]
[405788042,1771309841566,-12341.55658664,0.000175,2]
[405788045,1771309841582,-1629.04971599,0.000175,2]
[405788047,1771309841592,-10633.99564107,0.000175,2]
[405788059,1771309841700,-250.0,0.00015915,2]
[405788061,1771309841709,-250.0,0.00015915,2]
[405788063,1771309841718,-250.0,0.00015915,2]
[405788064,1771309841727,-250.0,0.00015915,2]
[405788066,1771309841736,-250.0,0.00015915,2]
[405788068,1771309841745,-250.0,0.00015915,2]
[405788070,1771309841754,-494.52539816,0.00016063,2]
[405788072,1771309841765,-487.0,0.00017325,2]
[405788074,1771309841775,-487.0,0.00017325,2]
[405788076,1771309841784,-487.0,0.00017325,2]